bitfinex-derivatives/quotes_BTCF0:USTF0_20250921
["timestamp","ask_amount","ask_price","bid_price","bid_amount"]
[1758463335271,0.1142935,115740.0,115730.0,1.5164258]
[1758463335674,0.1140335,115740.0,115730.0,1.8772258]
[1758463335975,0.1137735,115740.0,115730.0,1.8772258]
[1758463337276,0.1103535,115740.0,115730.0,1.8772258]
[1758463337775,0.1087935,115740.0,115730.0,1.8772258]
[1758463338077,0.1085935,115740.0,115730.0,1.8772258]
[1758463339874,0.0994935,115740.0,115730.0,1.8772258]
[1758463340272,0.0710135,115740.0,115730.0,1.8772258]
[1758463341670,0.03179,115740.0,115730.0,1.8772258]
[1758463341976,0.01532,115740.0,115730.0,1.8772258]
[1758463342176,0.1016757,115740.0,115730.0,1.8772258]
[1758463342378,0.1002957,115740.0,115730.0,1.8772258]
[1758463342777,0.0998457,115740.0,115730.0,1.8772258]
[1758463343076,0.0994757,115740.0,115730.0,1.8772258]
[1758463343773,0.0994757,115740.0,115730.0,1.98596096]
[1758463343974,0.0984357,115740.0,115730.0,1.98596096]
[1758463344673,0.45239302,115770.0,115750.0,0.0358]
[1758463344873,0.1049446,115760.0,115750.0,0.81534]
[1758463345173,0.1049446,115760.0,115750.0,0.81524]
[1758463345371,0.3542146,115760.0,115750.0,0.81524]
[1758463345772,0.3515246,115760.0,115750.0,0.81524]
[1758463346872,0.3515246,115760.0,115750.0,0.81624]
[1758463347073,0.42297149,115760.0,115750.0,0.81624]
[1758463347277,0.43297149,115760.0,115750.0,0.81924]
[1758463347579,0.4417155,115760.0,115750.0,0.81924]
[1758463348274,0.4417155,115760.0,115750.0,0.92797516]
[1758463350080,0.1917155,115760.0,115750.0,1.28877516]
[1758463357375,0.1917155,115760.0,115750.0,0.50933516]
[1758463357581,0.1917155,115760.0,115750.0,1.28873516]
[1758463361285,0.1917155,115760.0,115750.0,0.50933516]
[1758463361487,0.1917155,115760.0,115750.0,1.28873516]
[1758463371792,0.1917155,115760.0,115750.0,0.50933516]
[1758463372090,0.1918155,115760.0,115750.0,1.28869516]
[1758463378290,0.1918155,115760.0,115750.0,1.17996]
[1758463378595,0.1918155,115760.0,115750.0,0.81916]
[1758463378792,0.1918155,115760.0,115750.0,1.17996]
[1758463383992,0.1918155,115760.0,115750.0,0.4006]
[1758463384195,0.5651655,115760.0,115750.0,0.02581]
[1758463384400,0.8151655,115760.0,115750.0,0.04598756]
[1758463384599,1.5945255,115760.0,115750.0,6e-08]
[1758463384898,0.1210009,115750.0,115740.0,0.0002]
[1758463385099,0.1084584,115740.0,115730.0,0.80081]
[1758463385298,0.1084584,115740.0,115730.0,0.80061]
[1758463385299,0.4693584,115740.0,115730.0,0.80061]
[1758463385602,0.4693584,115740.0,115730.0,0.02125]
[1758463386603,0.4693584,115740.0,115730.0,0.03409]
[1758463387604,0.4743584,115740.0,115730.0,0.03709]
[1758463388303,0.4753584,115740.0,115730.0,0.03709]
[1758463393406,0.4886884,115740.0,115730.0,0.003]
[1758463394404,0.4886884,115740.0,115730.0,0.02516]
[1758463404916,0.1278884,115740.0,115730.0,0.02516]
[1758463405111,0.4886884,115740.0,115730.0,0.02516]
[1758463405520,0.4886884,115740.0,115730.0,0.03875]
[1758463408614,0.4886884,115740.0,115730.0,0.02516]
[1758463409619,0.4886884,115740.0,115730.0,0.03875]
[1758463412922,0.4886884,115740.0,115730.0,0.14736265]
[1758463420624,0.1278884,115740.0,115730.0,0.14736265]
[1758463421525,0.1278884,115740.0,115730.0,0.03875]
[1758463424429,0.1145584,115740.0,115730.0,0.03875]
[1758463424624,0.1145584,115740.0,115730.0,0.14760973]
[1758463427130,0.1278884,115740.0,115730.0,0.14760973]
[1758463430531,0.1145584,115740.0,115730.0,0.14760973]
[1758463437137,0.1145584,115740.0,115730.0,0.03875]
[1758463442430,0.1145584,115740.0,115730.0,0.14760973]
[1758463446438,0.1145584,115740.0,115730.0,0.03875]
[1758463451845,0.1145584,115740.0,115730.0,0.14762938]
[1758463452245,0.1145584,115740.0,115730.0,0.03875]
[1758463456853,0.1145584,115740.0,115730.0,0.14762939]
[1758463457448,0.1145584,115740.0,115730.0,2.14762939]
[1758463458849,0.1145584,115740.0,115730.0,2.03875]
[1758463459652,2.1145584,115740.0,115730.0,2.03875]
[1758463474761,2.1145584,115740.0,115730.0,2.14762937]
[1758463485068,2.1145584,115740.0,115730.0,2.03875]
[1758463485271,2.1145584,115740.0,115730.0,2.14762937]
[1758463489770,2.4753584,115740.0,115730.0,2.14762937]
[1758463505486,2.1145584,115740.0,115730.0,2.14762937]
[1758463505687,2.4753584,115740.0,115730.0,2.14762937]
[1758463517898,2.4886884,115740.0,115730.0,2.13403937]
[1758463518104,2.4886884,115740.0,115730.0,2.89267937]
[1758463518606,2.4886884,115740.0,115730.0,2.7838]
[1758463524909,2.4886884,115740.0,115730.0,2.89267937]
[1758463525606,2.4886884,115740.0,115730.0,2.89271937]
[1758463525806,3.2695284,115740.0,115730.0,2.89271937]
[1758463528211,3.2695284,115740.0,115730.0,2.78384]
[1758463528610,2.4886884,115740.0,115730.0,2.78384]
[1758463528812,3.2694484,115740.0,115730.0,2.78384]
[1758463529914,2.9086484,115740.0,115730.0,2.78384]
[1758463530110,3.6302484,115740.0,115730.0,2.78384]
[1758463531917,2.9086484,115740.0,115730.0,2.78384]
[1758463532116,3.6302484,115740.0,115730.0,2.78384]
[1758463535421,3.6302484,115740.0,115730.0,2.003]
[1758463535622,3.6302484,115740.0,115730.0,2.78368]
[1758463538222,3.6302084,115740.0,115730.0,2.78368]
[1758463539525,2.8494884,115740.0,115730.0,2.78368]
[1758463540224,3.6301684,115740.0,115730.0,2.78368]
[1758463541528,2.8494884,115740.0,115730.0,2.78368]
[1758463541727,3.6301284,115740.0,115730.0,2.78368]
[1758463542728,3.6301284,115740.0,115730.0,2.003]
[1758463542927,3.6301284,115740.0,115730.0,2.78364]
[1758463545323,3.6301284,115740.0,115730.0,2.89251937]
[1758463551029,3.6301284,115740.0,115730.0,2.78364]
[1758463555334,3.6301284,115740.0,115730.0,2.003]
[1758463556047,2.8494884,115740.0,115730.0,2.003]
[1758463556242,3.6310884,115740.0,115730.0,2.003]
[1758463559043,3.6310884,115740.0,115730.0,2.11187937]
[1758463561947,3.6310884,115740.0,115730.0,2.003]
[1758463563351,2.9094884,115740.0,115730.0,2.003]
[1758463563549,3.2702884,115740.0,115730.0,2.003]
[1758463570459,3.1594884,115740.0,115730.0,2.003]
[1758463570665,3.8810884,115740.0,115730.0,2.0034]
[1758463571364,3.8810884,115740.0,115730.0,2.003]
[1758463571564,3.8810884,115740.0,115730.0,2.0034]
[1758463586266,3.6310884,115740.0,115730.0,2.0034]
[1758463586771,3.6310884,115740.0,115730.0,2.003]
[1758463586968,3.6310884,115740.0,115730.0,2.0034]
[1758463587362,3.6310884,115740.0,115730.0,1.9195611]
[1758463587562,3.6310884,115740.0,115730.0,1.8699283]
[1758463587762,3.6310884,115740.0,115730.0,1.8374829]
[1758463597372,3.6310884,115740.0,115730.0,1.7701966]
[1758463601780,3.6310884,115740.0,115730.0,1.7430336]
[1758463601979,3.6310884,115740.0,115730.0,1.7175765]
[1758463602184,3.6310884,115740.0,115730.0,1.6941614]
[1758463602679,3.6310884,115740.0,115730.0,1.667393]
[1758463602880,3.6310884,115740.0,115730.0,1.6312922]
[1758463603078,3.6310884,115740.0,115730.0,1.5933127]
[1758463603378,3.6515291,115740.0,115730.0,1.5595497]
[1758463603680,3.6515291,115740.0,115730.0,1.5267006]
[1758463603880,3.6515291,115740.0,115730.0,1.4589192]
[1758463604081,3.6515291,115740.0,115730.0,1.4317449]
[1758463604276,3.6515291,115740.0,115730.0,1.4053045]
[1758463604580,3.6515291,115740.0,115730.0,1.3591045]
[1758463607778,3.6515291,115740.0,115730.0,1.2660196]
[1758463607980,3.6515291,115740.0,115730.0,1.10341156]
[1758463608178,3.6515291,115740.0,115730.0,0.91004886]
[1758463608378,3.6515291,115740.0,115730.0,0.73041556]
[1758463608578,3.6515291,115740.0,115730.0,0.56996196]
[1758463608779,3.6515291,115740.0,115730.0,0.45758066]
[1758463609082,3.6515291,115740.0,115730.0,0.26366206]
[1758463609283,3.6515291,115740.0,115730.0,0.17835416]
[1758463609482,3.6525291,115740.0,115730.0,0.03076416]
[1758463609678,3.6475291,115740.0,115730.0,6e-08]
[1758463609877,3.6615291,115740.0,115730.0,0.00400006]
[1758463610180,3.6615291,115740.0,115730.0,6e-08]
[1758463614075,2.8799291,115740.0,115730.0,6e-08]
[1758463614379,3.6656891,115740.0,115730.0,0.03521006]
[1758463614684,3.6523591,115740.0,115730.0,0.03521006]
[1758463617084,3.6527191,115740.0,115730.0,0.03521006]
[1758463620386,3.6660491,115740.0,115730.0,0.03521006]
[1758463625889,3.6660491,115740.0,115730.0,0.02142006]
[1758463634898,2.9444491,115740.0,115730.0,0.02142006]
[1758463635095,3.6660491,115740.0,115730.0,0.02142006]
[1758463635895,2.9444491,115740.0,115730.0,0.02142006]
[1758463636094,3.6660491,115740.0,115730.0,0.02142006]
[1758463636902,2.9444491,115740.0,115730.0,0.02142006]
[1758463637196,3.6660491,115740.0,115730.0,0.02142006]
[1758463637896,3.6527191,115740.0,115730.0,0.03457006]
[1758463647510,2.9311191,115740.0,115730.0,0.03457006]
[1758463647711,3.6527191,115740.0,115730.0,0.03457006]
[1758463649112,3.6657891,115740.0,115730.0,0.03457006]
[1758463656809,3.6657891,115740.0,115730.0,0.02142006]
[1758463657616,2.9441891,115740.0,115730.0,0.02142006]
[1758463657817,3.6657891,115740.0,115730.0,0.02142006]
[1758463660612,2.9441891,115740.0,115730.0,0.02142006]
[1758463660818,3.6657891,115740.0,115730.0,0.02142006]
[1758463672629,2.9441891,115740.0,115730.0,0.02142006]
[1758463672927,3.6657891,115740.0,115730.0,0.02142006]
[1758463677532,2.8796691,115740.0,115730.0,0.02142006]
[1758463677731,3.6644291,115740.0,115730.0,0.02142006]
[1758463679432,3.6643891,115740.0,115730.0,0.02142006]
[1758463682735,3.6643891,115740.0,115730.0,0.03438006]
[1758463695746,2.8796691,115740.0,115730.0,0.03438006]
[1758463695938,3.6644291,115740.0,115730.0,0.03438006]
[1758463699751,2.8665991,115740.0,115730.0,0.03438006]
[1758463699954,3.6513191,115740.0,115730.0,0.03438006]
[1758463700142,3.6537991,115740.0,115730.0,0.03438006]
[1758463700340,3.6541991,115740.0,115730.0,0.03438006]
[1758463700545,3.6541991,115740.0,115730.0,0.28438006]
[1758463705354,3.2933991,115740.0,115730.0,0.28438006]
[1758463719468,3.2933991,115740.0,115730.0,0.03438006]
[1758463725772,3.29268736,115740.0,115730.0,0.03438006]
[1758463729373,3.29268736,115740.0,115730.0,0.14325943]
[1758463730979,3.29268736,115740.0,115730.0,0.03438006]
[1758463735081,3.29268736,115740.0,115730.0,0.14325943]
[1758463736478,3.29268736,115740.0,115730.0,0.03438006]
[1758463738080,3.29268736,115740.0,115730.0,0.14325943]
[1758463747490,3.29268736,115740.0,115730.0,0.03438006]
[1758463747983,3.29268736,115740.0,115730.0,0.14325943]
[1758463750687,3.29268736,115740.0,115730.0,0.03438006]
[1758463756283,3.29268736,115740.0,115730.0,0.14325943]
[1758463765491,3.29268736,115740.0,115730.0,0.03438006]
[1758463766593,3.29268736,115740.0,115730.0,0.14325943]
[1758463767402,3.29268736,115740.0,115730.0,0.03438006]
[1758463770598,3.29268736,115740.0,115730.0,0.14325943]
[1758463770999,3.29268736,115740.0,115730.0,0.03438006]
[1758463773403,3.29268736,115740.0,115730.0,0.14325943]
[1758463774295,3.29268736,115740.0,115730.0,0.03438006]
[1758463787706,2.93188736,115740.0,115730.0,0.03438006]
[1758463788312,3.29268736,115740.0,115730.0,0.03438006]
[1758463790313,3.29268736,115740.0,115730.0,0.14325943]
[1758463791312,3.29268736,115740.0,115730.0,0.03438006]
[1758463795514,3.29268736,115740.0,115730.0,0.14325943]
[1758463795919,3.29268736,115740.0,115730.0,0.03438006]
[1758463803421,3.30558736,115740.0,115730.0,0.03438006]
[1758463809328,3.30558736,115740.0,115730.0,0.14325943]
[1758463810027,3.30558736,115740.0,115730.0,0.03438006]
[1758463813530,2.94478736,115740.0,115730.0,0.03438006]
[1758463813827,3.30558736,115740.0,115730.0,0.03438006]
[1758463823328,3.30558736,115740.0,115730.0,0.13029943]
[1758463823830,3.30558736,115740.0,115730.0,0.02142006]
[1758463826232,3.30558736,115740.0,115730.0,0.14317943]
[1758463836540,2.94478736,115740.0,115730.0,0.14317943]
[1758463836738,3.30558736,115740.0,115730.0,0.14317943]
[1758463839743,3.30558736,115740.0,115730.0,0.03430006]
[1758463844547,2.94478736,115740.0,115730.0,0.03430006]
[1758463844754,3.30558736,115740.0,115730.0,0.03430006]
[1758463845052,3.30558736,115740.0,115730.0,0.14317943]
[1758463845454,3.30558736,115740.0,115730.0,0.03430006]
[1758463845852,3.30558736,115740.0,115730.0,0.14317943]
[1758463846355,3.30558736,115740.0,115730.0,0.03430006]
[1758463847152,3.30558736,115740.0,115730.0,0.14317943]
[1758463847847,3.30558736,115740.0,115730.0,0.03430006]
[1758463848257,3.2858584,115740.0,115730.0,0.03430006]
[1758463858663,3.2858584,115740.0,115730.0,0.02142006]
[1758463874079,3.2858584,115740.0,115730.0,0.13029943]
[1758463875679,2.9250584,115740.0,115730.0,0.13029943]
[1758463875873,3.2858584,115740.0,115730.0,0.13029943]
[1758463880275,3.2858584,115740.0,115730.0,0.02142006]
[1758463884778,3.2854584,115740.0,115730.0,0.02142006]
[1758463885382,2.9246584,115740.0,115730.0,0.02142006]
[1758463885682,3.2854584,115740.0,115730.0,0.02142006]
[1758463885871,2.9246584,115740.0,115730.0,0.02142006]
[1758463886382,3.2854584,115740.0,115730.0,0.02142006]
[1758463887384,3.2854584,115740.0,115730.0,0.13029943]
[1758463889193,3.2854584,115740.0,115730.0,0.14423943]
[1758463889680,3.2814184,115740.0,115730.0,0.14423943]
[1758463889881,2.4982584,115740.0,115730.0,0.14423943]
[1758463890082,3.2814184,115740.0,115730.0,0.14423943]
[1758463890890,2.4982584,115740.0,115730.0,0.14423943]
[1758463891090,3.2814184,115740.0,115730.0,0.14423943]
[1758463891591,2.4982584,115740.0,115730.0,0.14423943]
[1758463891796,2.4853584,115740.0,115730.0,0.14423943]
[1758463892003,3.2685184,115740.0,115730.0,0.14423943]
[1758463892293,3.2689184,115740.0,115730.0,0.14423943]
[1758463901204,2.9081184,115740.0,115730.0,0.14423943]
[1758463919414,2.1249584,115740.0,115730.0,0.14423943]
[1758463919616,2.9079984,115740.0,115730.0,0.14423943]
[1758463929021,2.1249584,115740.0,115730.0,0.14423943]
[1758463929209,2.9079184,115740.0,115730.0,0.14423943]
[1758463929720,2.9079184,115740.0,115730.0,0.03536006]
[1758463934935,2.9079184,115740.0,115730.0,0.14423943]
[1758463997284,2.1378584,115740.0,115730.0,0.02142006]
[1758463997488,2.9202584,115740.0,115730.0,0.02142006]
[1758464007394,2.9202584,115740.0,115730.0,0.13029943]
[1758464023905,2.9202584,115740.0,115730.0,0.02142006]
[1758464028614,2.9202584,115740.0,115730.0,0.13029943]
[1758464039723,2.9202584,115740.0,115730.0,0.49109943]
[1758464045227,2.1249584,115740.0,115730.0,0.50446943]
[1758464045427,2.9069184,115740.0,115730.0,0.50446943]
[1758464047234,2.1249584,115740.0,115730.0,0.50446943]
[1758464051431,2.1249584,115740.0,115730.0,0.84082643]
[1758464051734,2.1245584,115740.0,115730.0,1.98350643]
[1758464051922,2.1249584,115740.0,115730.0,1.87462706]
[1758464053834,2.1249584,115740.0,115730.0,1.98350643]
[1758464054336,2.1249584,115740.0,115730.0,1.87462706]
[1758464056341,2.1249584,115740.0,115730.0,1.98350643]
[1758464057533,2.1249584,115740.0,115730.0,1.87462706]
[1758464059943,2.1249584,115740.0,115730.0,1.78827006]
[1758464066050,2.1249584,115740.0,115730.0,1.89697284]
[1758464074858,2.1216384,115740.0,115730.0,1.89697284]
[1758464075354,2.1213784,115740.0,115730.0,1.89697284]
[1758464075749,2.1213784,115740.0,115730.0,1.78827006]
[1758464076959,2.1207884,115740.0,115730.0,1.78827006]
[1758464077362,2.1203484,115740.0,115730.0,1.78827006]
[1758464078060,2.1198984,115740.0,115730.0,1.78827006]
[1758464078360,2.1152484,115740.0,115730.0,1.78827006]
[1758464078560,2.1152484,115740.0,115730.0,1.06667006]
[1758464078762,2.1148484,115740.0,115730.0,1.78827006]
[1758464079064,2.1146784,115740.0,115730.0,1.78827006]
[1758464079256,2.1146784,115740.0,115730.0,1.53827006]
[1758464079960,2.1141084,115740.0,115730.0,1.53827006]
[1758464080558,2.1141084,115740.0,115730.0,1.69384087]
[1758464080759,2.1132484,115740.0,115730.0,1.69384087]
[1758464080952,2.1119484,115740.0,115730.0,1.69384087]
[1758464083064,0.1119484,115740.0,115730.0,1.69384087]
[1758464084464,0.1101784,115740.0,115730.0,1.69384087]
[1758464084767,0.1100084,115740.0,115730.0,1.69384087]
[1758464085063,0.1098884,115740.0,115730.0,1.69384087]
[1758464085665,0.42205304,115740.0,115730.0,1.69384087]
[1758464087466,0.42175304,115740.0,115730.0,1.69384087]
[1758464088162,0.40626304,115740.0,115730.0,1.69384087]
[1758464089070,0.40496304,115740.0,115730.0,1.69384087]
[1758464089666,0.40397304,115740.0,115730.0,1.69384087]
[1758464090367,0.40387304,115740.0,115730.0,1.69384087]
[1758464090973,0.35077464,115740.0,115730.0,1.69384087]
[1758464091269,0.43712304,115740.0,115730.0,1.69384087]
[1758464091669,0.41982304,115740.0,115730.0,1.69384087]
[1758464091862,0.41982304,115740.0,115730.0,1.53827006]
[1758464092370,0.41549304,115740.0,115730.0,1.53827006]
[1758464094471,0.41537304,115740.0,115730.0,1.53827006]
[1758464095070,0.41495304,115740.0,115730.0,1.53827006]
[1758464095567,0.41470304,115740.0,115730.0,1.53827006]
[1758464095973,0.41421304,115740.0,115730.0,1.53827006]
[1758464096375,0.41279304,115740.0,115730.0,1.53827006]
[1758464096562,0.41279304,115740.0,115730.0,1.69384087]
[1758464097576,0.41189304,115740.0,115730.0,1.69384087]
[1758464098878,0.41172304,115740.0,115730.0,1.69384087]
[1758464100771,0.41161304,115740.0,115730.0,1.69384087]
[1758464101381,0.0993184,115740.0,115730.0,1.69384087]
[1758464102584,0.0987384,115740.0,115730.0,1.69384087]
[1758464103182,0.0956984,115740.0,115730.0,1.69384087]
[1758464104380,0.38541935,115740.0,115730.0,1.69384087]
[1758464104594,0.38516935,115740.0,115730.0,1.69384087]
[1758464104786,0.38498935,115740.0,115730.0,1.69384087]
[1758464105586,0.38498935,115740.0,115730.0,1.53827006]
[1758464105981,0.38488935,115740.0,115730.0,1.53827006]
[1758464107382,0.38447935,115740.0,115730.0,1.53827006]
[1758464107789,0.37504935,115740.0,115730.0,1.53827006]
[1758464110389,0.35338935,115740.0,115730.0,1.53827006]
[1758464111090,0.37606935,115740.0,115730.0,1.53827006]
[1758464111886,0.37584935,115740.0,115730.0,1.53827006]
[1758464112191,0.37572935,115740.0,115730.0,1.53827006]
[1758464112694,0.37547935,115740.0,115730.0,1.53827006]
[1758464112998,0.37526935,115740.0,115730.0,1.53827006]
[1758464113696,0.37094935,115740.0,115730.0,1.53827006]
[1758464115601,0.36185935,115740.0,115730.0,1.53827006]
[1758464115800,0.36195935,115740.0,115730.0,1.53827006]
[1758464116103,0.36122935,115740.0,115730.0,1.53827006]
[1758464116706,0.36122935,115740.0,115730.0,1.69384087]
[1758464117001,0.36109935,115740.0,115730.0,1.69384087]
[1758464117205,0.35994935,115740.0,115730.0,1.69384087]
[1758464118105,0.35893935,115740.0,115730.0,1.69384087]
[1758464120814,0.35861935,115740.0,115730.0,1.69384087]
[1758464121512,0.35837935,115740.0,115730.0,1.69384087]
[1758464122510,0.35816935,115740.0,115730.0,1.69384087]
[1758464123713,0.35775935,115740.0,115730.0,1.69384087]
[1758464124114,0.35703935,115740.0,115730.0,1.69384087]
[1758464124315,0.35803935,115740.0,115730.0,1.69584087]
[1758464124612,0.35803935,115740.0,115730.0,1.69584081]
[1758464124816,0.36103935,115740.0,115730.0,1.70284081]
[1758464125716,0.36039935,115740.0,115730.0,1.70284081]
[1758464126015,0.36029935,115740.0,115730.0,1.70284081]
[1758464126515,0.35999935,115740.0,115730.0,1.70284081]
[1758464127712,0.35988935,115740.0,115730.0,1.70284081]
[1758464128215,0.35758935,115740.0,115730.0,1.70284081]
[1758464128614,0.34755935,115740.0,115730.0,1.70284081]
[1758464129019,0.36856935,115740.0,115730.0,0.92096081]
[1758464129315,0.36856935,115740.0,115730.0,1.70220081]
[1758464129517,0.36830935,115740.0,115730.0,1.70220081]
[1758464129916,0.36792935,115740.0,115730.0,1.70220081]
[1758464131217,0.36792935,115740.0,115730.0,0.92096081]
[1758464131418,0.36792935,115740.0,115730.0,1.70220081]
[1758464131619,0.36792935,115740.0,115730.0,0.92096081]
[1758464131821,0.36792935,115740.0,115730.0,1.70220081]
[1758464132219,0.36157935,115740.0,115730.0,1.70220081]
[1758464132519,0.35540935,115740.0,115730.0,1.70220081]
[1758464133318,0.35499935,115740.0,115730.0,1.70220081]
[1758464133515,0.35499935,115740.0,115730.0,0.92096081]
[1758464133819,0.35499935,115740.0,115730.0,1.70216081]
[1758464134421,0.35499935,115740.0,115730.0,1.54659]
[1758464135920,0.35459935,115740.0,115730.0,1.54659]
[1758464136323,0.35243935,115740.0,115730.0,1.54659]
[1758464136621,0.35201935,115740.0,115730.0,1.54659]
[1758464137526,0.35179935,115740.0,115730.0,1.54659]
[1758464137713,0.35179935,115740.0,115730.0,0.04379]
[1758464137918,0.35119935,115740.0,115730.0,1.29464649]
[1758464138425,0.34514935,115740.0,115730.0,1.29504649]
[1758464138623,0.34432935,115740.0,115730.0,1.29504649]
[1758464139428,0.27111935,115740.0,115730.0,1.29504649]
[1758464140426,0.26611935,115740.0,115730.0,1.29504649]
[1758464140725,0.26421935,115740.0,115730.0,1.29504649]
[1758464141226,0.26237935,115740.0,115730.0,1.29504649]
[1758464142626,0.20275935,115740.0,115730.0,1.29504649]
[1758464143830,0.06802935,115740.0,115730.0,1.29504649]
[1758464144021,0.06802935,115740.0,115730.0,1.18619]
[1758464160636,0.31802935,115740.0,115730.0,0.40499]
[1758464160836,0.68259935,115740.0,115730.0,0.79012]
[1758464161040,0.68259935,115740.0,115730.0,0.0094]
[1758464161236,0.32179935,115740.0,115730.0,0.0094]
[1758464164744,0.32179935,115740.0,115730.0,0.11825649]
[1758464165534,0.32179935,115740.0,115730.0,0.0094]
[1758464168448,0.32179935,115740.0,115730.0,0.1182512]
[1758464170848,0.68259935,115740.0,115730.0,0.1182512]
[1758464171741,0.43259935,115740.0,115730.0,0.1182512]
[1758464171946,1.46371935,115740.0,115730.0,0.1182512]
[1758464172144,1.46371935,115740.0,115730.0,0.0094]
[1758464172345,1.46371935,115740.0,115730.0,0.009]
[1758464172647,1.46371935,115740.0,115730.0,0.0094]
[1758464176758,1.46371935,115740.0,115730.0,0.009]
[1758464177061,1.46371935,115740.0,115730.0,0.0094]
[1758464180563,0.68259935,115740.0,115730.0,0.0094]
[1758464180752,1.46431935,115740.0,115730.0,0.0094]
[1758464180950,1.46423935,115740.0,115730.0,0.0094]
[1758464182564,1.46423935,115740.0,115730.0,1e-07]
[1758464191572,1.10343935,115740.0,115730.0,1e-07]
[1758464191774,1.82503935,115740.0,115730.0,1e-07]
[1758464199284,1.57503935,115740.0,115730.0,1e-07]
[1758464205285,0.85343935,115740.0,115730.0,1e-07]
[1758464205492,1.57503935,115740.0,115730.0,1e-07]
[1758464214400,0.85343935,115740.0,115730.0,1e-07]
[1758464214700,1.57503935,115740.0,115730.0,1e-07]
[1758464227306,0.79339935,115740.0,115730.0,1e-07]
[1758464227508,1.57467935,115740.0,115730.0,1e-07]
[1758464232913,1.57483935,115740.0,115730.0,1e-07]
[1758464235110,0.79339935,115740.0,115730.0,1e-07]
[1758464235602,1.57479935,115740.0,115730.0,1e-07]
[1758464235802,1.57475935,115740.0,115730.0,1e-07]
[1758464253517,1.59471092,115740.0,115730.0,1e-07]
[1758464254120,0.1073668,115730.0,115720.0,0.0366401]
[1758464254419,0.4682668,115730.0,115720.0,0.0365401]
[1758464254627,0.1074668,115730.0,115720.0,0.0365401]
[1758464254821,0.4682668,115730.0,115720.0,0.0365401]
[1758464255621,1.2535468,115730.0,115720.0,0.0435401]
[1758464257824,1.2505468,115730.0,115720.0,0.0385401]
[1758464258014,1.2545468,115730.0,115720.0,0.0415401]
[1758464258413,1.2545468,115730.0,115720.0,0.1503913]
[1758464269127,1.2545468,115730.0,115720.0,0.1502713]
[1758464271227,1.2545468,115730.0,115720.0,0.0414201]
[1758464272022,1.2545468,115730.0,115720.0,0.1502713]
[1758464274027,1.2545468,115730.0,115720.0,0.0414201]
[1758464276527,1.2545468,115730.0,115720.0,0.1502713]
[1758464276829,1.2545468,115730.0,115720.0,0.0414201]
[1758464298156,1.2545468,115730.0,115720.0,0.1502713]
[1758464311765,0.4732668,115730.0,115720.0,0.1502713]
[1758464311968,1.2545068,115730.0,115720.0,0.1502713]
[1758464312267,1.2545068,115730.0,115720.0,0.16759216]
[1758464314276,0.4732668,115730.0,115720.0,0.16759216]
[1758464314463,1.2545068,115730.0,115720.0,0.16759216]
[1758464314663,1.2545068,115730.0,115720.0,0.05874096]
[1758464318873,0.4732668,115730.0,115720.0,0.05874096]
[1758464319074,1.2545068,115730.0,115720.0,0.05874096]
[1758464319778,0.4732668,115730.0,115720.0,0.05874096]
[1758464319975,1.2545068,115730.0,115720.0,0.05874096]
[1758464321980,1.2545068,115730.0,115720.0,0.16759216]
[1758464328787,1.2545068,115730.0,115720.0,0.05874096]
[1758464337390,0.4732668,115730.0,115720.0,0.05874096]
[1758464337593,1.2544668,115730.0,115720.0,0.05874096]
[1758464341582,1.2544668,115730.0,115720.0,0.16759216]
[1758464343599,0.8936668,115730.0,115720.0,0.16759216]
[1758464343790,1.2544668,115730.0,115720.0,0.16759216]
[1758464355303,1.2544668,115730.0,115720.0,0.05874096]
[1758464357107,1.2544668,115730.0,115720.0,0.05804086]
[1758464361912,1.2544668,115730.0,115720.0,0.16689206]
[1758464375138,1.2544668,115730.0,115720.0,0.05804086]
[1758464377739,1.2544668,115730.0,115720.0,0.02232086]
[1758464378239,1.2544668,115730.0,115720.0,0.04344086]
[1758464378430,1.2544668,115730.0,115720.0,0.05652086]
[1758464395948,0.8936668,115730.0,115720.0,0.05652086]
[1758464396147,1.2544668,115730.0,115720.0,0.05652086]
[1758464407460,1.2544668,115730.0,115720.0,0.03393256]
[1758464407650,0.0863626,115720.0,115710.0,0.35209717]
[1758464407952,0.1096026,115720.0,115710.0,0.37456717]
[1758464408862,0.1106026,115720.0,115710.0,0.37656717]
[1758464409360,0.1106026,115720.0,115710.0,0.38056717]
[1758464409543,0.4714026,115720.0,115710.0,0.38056717]
[1758464410859,0.4744026,115720.0,115710.0,0.37956717]
[1758464411362,0.54356259,115720.0,115710.0,0.37956717]
[1758464411854,0.18276259,115720.0,115710.0,0.37956717]
[1758464413862,0.54356259,115720.0,115710.0,0.37956717]
[1758464418769,0.55611259,115720.0,115710.0,0.37956717]
[1758464418968,0.55611259,115720.0,115710.0,0.27111597]
[1758464419271,0.55611259,115720.0,115710.0,0.27107597]
[1758464419466,0.54356259,115720.0,115710.0,0.27107597]
[1758464420682,0.54356259,115720.0,115710.0,1.05215597]
[1758464422482,0.54356259,115720.0,115710.0,0.27107597]
[1758464422687,0.54356259,115720.0,115710.0,1.05267597]
[1758464423083,0.54356259,115720.0,115710.0,1.16152717]
[1758464423479,0.54356259,115720.0,115710.0,1.05267597]
[1758464423788,0.54356259,115720.0,115710.0,1.16152717]
[1758464425390,0.54356259,115720.0,115710.0,1.16144717]
[1758464425889,0.54356259,115720.0,115710.0,1.05259597]
[1758464427185,0.54356259,115720.0,115710.0,0.27107597]
[1758464427381,0.54356259,115720.0,115710.0,1.05255597]
[1758464428487,0.55615259,115720.0,115710.0,1.05255597]
[1758464432390,0.54356259,115720.0,115710.0,1.05255597]
[1758464435591,0.54356259,115720.0,115710.0,1.16140717]
[1758464436891,0.54356259,115720.0,115710.0,1.05255597]
[1758464442392,0.54356259,115720.0,115710.0,1.16140717]
[1758464442796,0.54356259,115720.0,115710.0,0.37992717]
[1758464442995,0.54356259,115720.0,115710.0,1.16184717]
[1758464443394,0.54356259,115720.0,115710.0,0.9316412]
[1758464450207,0.55615259,115720.0,115710.0,0.8959712]
[1758464450903,0.55615259,115720.0,115710.0,0.9174112]
[1758464454407,0.55615259,115720.0,115710.0,0.1356912]
[1758464454606,0.55615259,115720.0,115710.0,0.9172512]
[1758464455601,0.55615259,115720.0,115710.0,0.8084]
[1758464458408,0.55615259,115720.0,115710.0,0.02684]
[1758464458604,0.55615259,115720.0,115700.0,0.12714754]
[1758464458605,0.12062,115710.0,115700.0,0.12714754]
[1758464458800,0.48152,115710.0,115700.0,0.82052634]
[1758464459001,0.48152,115710.0,115700.0,0.82092634]
[1758464460501,0.48552,115710.0,115700.0,0.82792634]
[1758464462412,0.49417033,115710.0,115700.0,0.82792634]
[1758464464012,0.49417033,115710.0,115700.0,0.82788634]
[1758464467314,0.49417033,115710.0,115700.0,0.93675718]
[1758464468110,0.49417033,115710.0,115700.0,0.82788634]
[1758464468311,0.13337033,115710.0,115700.0,0.82788634]
[1758464468515,0.49417033,115710.0,115700.0,0.82788634]
[1758464468914,0.49417033,115710.0,115700.0,0.93675607]
[1758464469415,0.49417033,115710.0,115700.0,0.95032607]
[1758464473518,0.49417033,115710.0,115700.0,0.84145634]